[Event "44th Chess Olympiad Open 2022"]
[Site "Chennai"]
[Date "2022.07.30"]
[Round "2.43"]
[White "Dornbusch, Tatiana"]
[Black "Stefansson, Hannes"]
[Result "0-1"]
[ECO "D00"]
[WhiteElo "2247"]
[BlackElo "2541"]
[Annotator "TA"]
[PlyCount "68"]
[EventDate "2022.07.29"]
[EventType "team-tourn"]
[EventCountry "IND"]
[SourceTitle "playchess.com"]
[Source "ChessBase"]
[SourceQuality "1"]
[WhiteTeam "Monaco"]
[BlackTeam "Iceland"]
[WhiteTeamCountry "MNC"]
[BlackTeamCountry "ISL"]
[TimeControl "40/5400+30:1800+30"]

{[%evp 9,68,0,6,-4,-8,-35,-32,-45,-68,-39,-55,-56,-23,-19,-25,-50,-31,-95,-93,-189,-159,-208,-193,-212,-206,-229,-238,-235,-225,-223,-236,-237,-223,-226,-223,-224,-234,-232,-226,-381,-354,-389,-254,-337,-314,-292,0,-275,-268,-274,-277,-269,-268,-280,-260,-326,-318,-308,-323,-555,-550]} 1. d4 {[%emt 0:00:13]} Nf6 {[%emt 0:00:12]} 2. Bg5 {[%emt 0:00:26]} d5 {[%emt 0:01:04]} 3. Bxf6 {[%emt 0:11:47]} gxf6 {[%emt 0:00:29]} 4. c4 {[%emt 0:05:32]} dxc4 {[%emt 0:07:17]} 5. e3 {[%emt 0:07:33]} c5 {[%emt 0:04:05]} 6. Nc3 {[%emt 0:20:28] D00: 1 d4 d5: Unusual lines.} cxd4 {[%emt 0:02:19]} 7. exd4 {[%emt 0:01:12]} (7. Bxc4 $5 {[%cal Rd1h5]} Rg8 8. Qh5 $15) 7... Nc6 {[%emt 0:05:58][%cal Bb8c6,Bc6d4,Bd4c2][%mdl 32]} 8. Bxc4 {[%emt 0:09:16] Black is slightly better.} Qxd4 {[%emt 0:05:57]} 9. Qxd4 {[%emt 0:05:47]} Nxd4 {[%emt 0:03:16]} 10. Rd1 $1 {[%emt 0:01:56] [#]} Nc2+ $146 {[%emt 0:11:30]} ({Predecessor:} 10... e5 11. Nge2 Bc5 12. Nxd4 Bxd4 13. Nb5 Bb6 14. O-O Bg4 15. Rc1 Rg8 16. Nd6+ Ke7 {0-1 (23) Zozulia,A-Metelkin,V Nikolaev 2007}) 11. Kf1 {[%emt 0:02:59]} Bh6 {[%emt 0:01:15]} 12. Nd5 {[%emt 0:07:12] [#] Inhibits Nb4. And now Nc7+ would win.} Bg4 {[%emt 0:06:51]} 13. f3 {[%emt 0:02:24]} (13. Ne2 $15 Rc8 14. Bb3) 13... Bf5 {[%emt 0:01:39]} 14. g4 {[%emt 0:06:29]} (14. Nc7+ $2 Kf8 15. Nxa8 Ne3+ 16. Ke2 Nxd1 17. Kxd1 Kg7 $17) (14. Kf2 $17 {was necessary.}) 14... Bg6 {[%emt 0:01:47] This bishop pair is nice.} 15. h4 {[%emt 0:10:13] [#]} (15. Ke2 $17 {is a better defense.} Rc8 16. Bb3) 15... e6 $1 $19 {[%emt 0:03:03]} 16. Nxf6+ {[%emt 0:02:45]} Ke7 {[%emt 0:00:46][%cal Be8e7,Be7f6,Bf6e5][%mdl 32] Threatens to win with ...Ne3+.} 17. Rd7+ {[%emt 0:00:40]} Kxf6 {[%emt 0:00:07]} 18. g5+ {[%emt 0:00:30]} Ke5 {[%emt 0:06:59]} 19. Kf2 {[%emt 0:00:53] Against Ne3} Rac8 {[%emt 0:02:52]} 20. b3 {[%emt 0:00:53]} Rhd8 {[%emt 0:08:48]} 21. Rxd8 {[%emt 0:00:41]} Rxd8 {[%emt 0:00:07]} 22. gxh6 {[%emt 0:00:03]} Rd2+ {[%emt 0:00:12]} 23. Ne2 {[%emt 0:00:12]} Na3 {[%emt 0:01:35] Hoping for ...b5.} 24. h5 $2 {[%emt 0:01:07]} (24. Rg1) 24... Bf5 {[%emt 0:00:32]} 25. Rc1 {[%emt 0:00:54]} Rxa2 {[%emt 0:01:51]} 26. Ke3 {[%emt 0:00:39]} Nc2+ {[%emt 0:01:45]} 27. Kd2 {[%emt 0:00:06]} Na3+ {[%emt 0:08:15]} 28. Ke3 {[%emt 0:00:16]} Rb2 {[%emt 0:00:15]} 29. Nd4 {[%emt 0:00:40] Against b5} Nc2+ {[%emt 0:02:26]} 30. Nxc2 {[%emt 0:00:38]} Bxc2 {[%emt 0:00:06]} ({Stronger than} 30... Rxc2 31. Rxc2 Bxc2 32. b4 $19) 31. f4+ {[%emt 0:00:38]} Kf6 {[%emt 0:01:19]} 32. Kd4 {[%emt 0:00:40] Kc3 is the strong threat.} Bf5 {[%emt 0:00:08]} ({Not} 32... Bxb3 33. Kc3 Rh2 34. Bxb3 $11 (34. Kxb3 Rxh5 35. Bd3 Rxh6 $11)) 33. Ra1 {[%emt 0:00:24]} a6 {[%emt 0:00:36]} 34. Rg1 $2 {[%emt 0:00:40]} (34. Kc5) 34... b5 {[%emt 0:01:08] Weighted Error Value: White=0.35/Black=0.18 (very precise)} 0-1

[Event "44th Chess Olympiad Open 2022"]
[Site "Chennai"]
[Date "2022.07.30"]
[Round "2.44"]
[White "Samsonkin, Artiom"]
[Black "Nsubuga, Haruna"]
[Result "1-0"]
[ECO "B31"]
[WhiteElo "2434"]
[BlackElo "2160"]
[Annotator "TA"]
[PlyCount "55"]
[EventDate "2022.07.29"]
[EventType "team-tourn"]
[EventCountry "IND"]
[SourceTitle "playchess.com"]
[Source "ChessBase"]
[SourceQuality "1"]
[WhiteTeam "Canada"]
[BlackTeam "Uganda"]
[WhiteTeamCountry "CAN"]
[BlackTeamCountry "UGA"]
[TimeControl "40/5400+30:1800+30"]

{[%evp 12,55,63,70,114,112,222,210,191,218,225,153,138,122,395,379,397,265,265,264,291,231,231,230,238,231,294,214,246,208,312,313,316,302,318,285,320,313,723,716,853,626,1431,1383,29984,29981]} 1. e4 {[%emt 0:00:07]} c5 {[%emt 0:03:17]} 2. Nf3 {[%emt 0:00:23]} Nc6 {[%emt 0:00:10]} 3. Bb5 {[%emt 0:00:27]} g6 {[%emt 0:00:09]} 4. c3 {[%emt 0:00:18]} Bg7 {[%emt 0:03:18]} 5. d4 {[%emt 0:00:31]} cxd4 {[%emt 0:00:50]} 6. cxd4 {[%emt 0:00:23]} Qb6 {[%emt 0:00:11] 6...Nf6 injects fresh life into this line.} 7. Nc3 $1 {[%emt 0:03:06]} Nxd4 {[%emt 0:03:48] [#] B31: Sicilian: 2...Nc6 3 Bb5 g6.} 8. Nd5 $1 {[%emt 0:02:52]} Qc5 {[%emt 1:05:04]} (8... Nxf3+ $16 {is a better defense.} 9. Qxf3 Qd6) 9. Nxd4 $18 {[%emt 0:01:17]} Bxd4 {[%emt 0:00:09] [#] White is clearly better.} 10. O-O {[%emt 0:00:51][%cal Oc1f4]} Be5 {[%emt 0:00:32] [#]} 11. Be3 $1 {[%emt 0:09:22]} Qxb5 {[%emt 0:00:35]} 12. Bd4 {[%emt 0:00:05][%cal Be3d4,Bd4h8,Bh8f6][%mdl 96] [#] Deflection. White is more active.} Bd6 $146 {[%emt 0:13:15][%mdl 8192] Loses the game.} ({Predecessor:} 12... f6 13. Bxe5 Kf7 14. Bd4 b6 15. a4 Qc6 16. Rc1 Qd6 17. Nc7 Rb8 18. Qb3+ e6 {1-0 (45) Castella Garcia,F (2325)-Quispe Arteaga,G (2218) Mislata 2016}) 13. Bxh8 {[%emt 0:00:19]} f6 {[%emt 0:01:58] Against e5} 14. Nxf6+ {[%emt 0:03:45]} Nxf6 {[%emt 0:00:08]} 15. Bxf6 {[%emt 0:00:22]} b6 {[%emt 0:01:28]} 16. a4 {[%emt 0:06:38]} Qc4 {[%emt 0:00:42]} 17. Bd4 {[%emt 0:03:59] Strongly threatening Rc1.} Ba6 {[%emt 0:00:40]} 18. Re1 {[%emt 0:00:31]} Qf7 {[%emt 0:01:18]} 19. Qd2 {[%emt 0:03:13]} Bb7 {[%emt 0:01:10]} 20. f3 {[%emt 0:00:36]} Bc6 {[%emt 0:00:17]} (20... Qf4 $142 21. Qxf4 Bxf4) 21. e5 {[%emt 0:02:35][%cal Be4e5,Be5e6][%mdl 32]} Bc7 {[%emt 0:00:33]} 22. Rac1 {[%emt 0:01:10]} Qd5 {[%emt 0:00:47]} 23. Qc3 {[%emt 0:03:50][%cal Oe5e6] And now e6! would win.} Rc8 {[%emt 0:00:20]} 24. e6 {[%emt 0:01:39]} Qh5 $2 {[%emt 0:00:15]} (24... dxe6 25. Qxc6+ Qxc6 26. Rxc6 Bxh2+ 27. Kxh2 Rxc6) 25. Be5 {[%emt 0:00:33]} Bd8 {[%emt 0:00:56]} 26. Qb3 {[%emt 0:05:32] White threatens exd7+ and mate.} dxe6 {[%emt 0:01:08] [#]} 27. Rxc6 {[%emt 0:01:02][%mdl 512]} Qh4 {[%emt 0:00:31]} (27... Rxc6 28. Qb5) 28. g3 {[%emt 0:00:44] Weighted Error Value: White=0.34/Black=0.90} 1-0

[Event "44th Chess Olympiad Open 2022"]
[Site "Chennai"]
[Date "2022.07.30"]
[Round "2.45"]
[White "Johnson, Joshua"]
[Black "Gundavaa, Bayarsaikhan"]
[Result "0-1"]
[ECO "B12"]
[WhiteElo "2178"]
[BlackElo "2503"]
[Annotator "TA"]
[PlyCount "54"]
[EventDate "2022.07.29"]
[EventType "team-tourn"]
[EventCountry "IND"]
[SourceTitle "playchess.com"]
[Source "ChessBase"]
[SourceQuality "1"]
[WhiteTeam "TTO"]
[BlackTeam "Mongolia"]
[BlackTeamCountry "MGL"]
[TimeControl "40/5400+30:1800+30"]

{[%evp 9,54,14,0,0,0,0,0,0,0,-7,-1,-7,0,0,-1,0,0,0,0,-43,-29,-65,-58,-92,-93,-174,-181,-284,-284,-366,-347,-389,-400,-386,-387,-363,-368,-483,-452,-503,-511,-551,-539,-596,-494,-613,-595]} 1. e4 {[%emt 0:00:03]} c6 {[%emt 0:00:18]} 2. d4 {[%emt 0:00:49]} d5 {[%emt 0:00:06]} 3. e5 {[%emt 0:00:01]} c5 {[%emt 0:00:55]} 4. dxc5 {[%emt 0:00:06]} e6 {[%emt 0:00:06]} 5. a3 {[%emt 0:03:16]} Bxc5 {[%emt 0:00:13]} 6. b4 {[%emt 0:00:04] B12: Caro-Kann: Advance Variation.} Be7 {[%emt 0:00:09]} 7. Nf3 {[%emt 0:11:17]} a5 {[%emt 0:03:21]} 8. b5 {[%emt 0:02:13] The position is equal.} (8. Bb5+ Bd7 9. Bxd7+ Nxd7 $15) 8... Nd7 {[%emt 0:00:49]} 9. Bb2 {[%emt 0:08:18]} Nh6 {[%emt 0:08:34]} 10. c4 {[%emt 0:08:09]} dxc4 {[%emt 0:28:34]} 11. Bxc4 {[%emt 0:06:30]} b6 {[%emt 0:01:53] [#]} 12. Nbd2 $146 {[%emt 0:10:09]} ({Predecessor:} 12. O-O Bb7 13. Qe2 Rc8 14. Nbd2 O-O 15. Ne4 Rc7 16. Nd6 Bxf3 17. gxf3 Nxe5 18. Bxe5 Bxd6 {½-½ (38) Tarasenko,I (2005)-Den,D (2166) Tuapse 2022}) 12... Bb7 {[%emt 0:00:17]} 13. Nd4 {[%emt 0:05:27]} Qc7 {[%emt 0:15:10] Prevents Nc6.} ({Don't do} 13... Bxg2 14. Rg1 Bb7 15. Qh5 $16) 14. Qh5 {[%emt 0:16:14]} O-O {[%emt 0:11:52]} 15. O-O {[%emt 0:20:44]} Qxe5 {[%emt 0:05:15]} 16. Qh3 {[%emt 0:00:03] [#] And now Rae1 would win.} Bf6 $36 {[%emt 0:02:28][%cal Be7f6,Bf6b2,Bb2a3][%mdl 2080] Black is on the roll.} 17. Rae1 {[%emt 0:02:05]} (17. Rad1 $17) 17... Qf4 $19 {[%emt 0:01:14][%csl LRd2,LRd4]} 18. Nxe6 {[%emt 0:02:14]} (18. N2f3 $142 Bxf3 19. Qxf3 Qxf3 20. gxf3) 18... fxe6 {[%emt 0:04:13]} ({Weaker is} 18... Qxd2 19. Bxf6 Nxf6 20. Rd1 $17) 19. Qxe6+ {[%emt 0:00:23]} Kh8 {[%emt 0:00:58]} 20. Qxd7 {[%emt 0:00:03] [#] Strongly threatening Bxf6.} Bxb2 {[%emt 0:01:40] Dancing on a razor blade.} 21. Qxb7 {[%emt 0:00:06]} Qxd2 {[%emt 0:02:09]} ({Inferior is} 21... Ng4 22. Nf3 Qxc4 23. Re4 $17) 22. Re2 {[%emt 0:00:15]} Qd4 {[%emt 0:00:37]} 23. Bb3 {[%emt 0:00:43]} Rab8 {[%emt 0:01:55] Black is clearly winning.} 24. Qe7 {[%emt 0:00:22]} Nf5 {[%emt 0:00:12]} 25. Qg5 {[%emt 0:00:06]} Bxa3 {[%emt 0:00:44]} 26. Bc2 {[%emt 0:00:04]} Qf6 {[%emt 0:00:41]} 27. Qg4 {[%emt 0:00:15]} Nd4 {[%emt 0:00:25] Weighted Error Value: White=0.39/Black=0.07 (flawless)} 0-1

[Event "44th Chess Olympiad Open 2022"]
[Site "Chennai"]
[Date "2022.07.30"]
[Round "2.46"]
[White "Taher, Yoseph Theolifus"]
[Black "Croad, Nicolas"]
[Result "1-0"]
[ECO "E20"]
[WhiteElo "2463"]
[BlackElo "2289"]
[Annotator "TA"]
[PlyCount "85"]
[EventDate "2022.07.29"]
[EventType "team-tourn"]
[EventCountry "IND"]
[SourceTitle "playchess.com"]
[Source "ChessBase"]
[SourceQuality "1"]
[WhiteTeam "Indonesia"]
[BlackTeam "New Zealand"]
[WhiteTeamCountry "INA"]
[BlackTeamCountry "NZL"]
[TimeControl "40/5400+30:1800+30"]

{[%evp 20,85,38,22,35,24,27,22,35,0,4,-64,0,-47,35,44,39,28,398,135,114,124,116,87,77,75,86,83,215,-126,365,341,326,362,361,342,443,422,414,320,775,769,687,665,923,932,633,900,895,875,850,849,849,810,791,686,645,610,1097,1181,29987,29988,29988,29989,29989,29990,29990,29991]} 1. d4 {[%emt 0:00:06]} Nf6 {[%emt 0:00:06]} 2. c4 {[%emt 0:00:16]} e6 {[%emt 0:00:06]} 3. Nc3 {[%emt 0:00:06]} Bb4 {[%emt 0:00:07]} 4. f3 {[%emt 0:00:08]} c5 {[%emt 0:00:40]} 5. d5 {[%emt 0:00:11]} b5 {[%emt 0:01:16]} 6. e4 {[%emt 0:00:05]} bxc4 {[%emt 0:00:59]} 7. Bxc4 {[%emt 0:00:05]} Nxd5 {[%emt 0:00:41]} 8. Bxd5 {[%emt 0:00:16]} exd5 {[%emt 0:00:05]} 9. Qxd5 {[%emt 0:00:05]} Nc6 {[%emt 0:01:41]} 10. Nge2 {[%emt 0:00:07]} Ba6 {[%emt 0:05:25]} 11. Kf2 {[%emt 0:00:06]} O-O {[%emt 0:03:59] E20: Nimzo-Indian: 4 g3 and 4 f3.} 12. Rd1 {[%emt 0:10:32]} Re8 {[%emt 0:18:09] [#] has lost popularity (12...Ba5).} 13. Kg1 $146 {[%emt 0:10:16]} ({Predecessor:} 13. Bf4 Bxc3 14. bxc3 Qf6 15. Bd6 Rac8 16. Bxc5 Re5 17. Qd6 Rxe4 18. Nd4 Qxd6 {½-½ (18) Krush,I (2436)-Paehtz,E (2456) Dortmund 2006}) 13... Ne5 {[%emt 0:04:57] The position is equal.} 14. Nf4 {[%emt 0:01:01]} (14. Bf4 $5 {[%cal Rf4e5]} Bc4 15. Qd2 $14) 14... Rb8 {[%emt 0:05:47]} 15. a3 {[%emt 0:07:28]} (15. Qd6 $11 Rb6 16. Qd2) 15... Ba5 {[%emt 0:02:40]} (15... Bc4 $15 16. Qd2 Ba5) 16. Qd6 {[%emt 0:06:46]} (16. Kh1 $11 {feels stronger.}) 16... Rb6 {[%emt 0:08:21]} (16... Bc4 $1 $15) 17. Qxc5 $14 {[%emt 0:04:29] Hoping for b4.} Rxb2 {[%emt 0:07:46]} 18. Ncd5 {[%emt 0:01:11]} (18. Bxb2 $2 Bb6 19. Na4 Bxc5+ 20. Nxc5 Nxf3+ $1 {[%mdl 512]} 21. gxf3 Qg5+ 22. Ng2 Qxc5+ 23. Bd4 Qh5 $19) 18... Qg5 $2 {[%emt 0:15:18][%mdl 8192]} 19. Kh1 $2 {[%emt 0:04:50]} (19. Bxb2 Bb6 20. Qxb6 axb6 $15) (19. Qxa5 $18 {and the rest is easy.} Nxf3+ 20. Kh1) 19... Bb6 $16 {[%emt 0:05:44]} 20. Nxb6 {[%emt 0:02:16]} axb6 {[%emt 0:00:32]} 21. Qc3 {[%emt 0:01:04]} Rf2 {[%emt 0:02:20] ...Qh4 is the strong threat.} 22. Be3 $40 {[%emt 0:02:08][%csl LRb6,LRf2][%mdl 128] White goes for the king.} Rc8 {[%emt 0:01:01]} 23. Qd4 {[%emt 0:06:06]} Nxf3 {[%emt 0:00:53]} (23... Rfc2 $16 {is a better defense.}) 24. Qd6 $2 {[%emt 0:03:59]} (24. gxf3 Be2 $1 25. Rg1 Bxf3+) (24. Qxd7 $18 Qh4 25. h3) 24... Rfc2 {[%emt 0:09:46][%mdl 8192] White leaves nothing to chance now.} 25. gxf3 $18 {[%emt 0:05:19] Black must now prevent Rg1. The board is on fire.} Be2 {[%emt 0:00:38]} 26. Nxe2 {[%emt 0:05:11][%cal Bf4e2,Be2d4,Bd4f5,Bf5e7][%mdl 32]} ({Less strong is} 26. Ng2 Qg6 $16) 26... Qxe3 {[%emt 0:00:31]} 27. Nd4 {[%emt 0:00:49]} Rd2 {[%emt 0:03:44][%cal Od2d4]} 28. Rxd2 {[%emt 0:00:18]} Qxd2 {[%emt 0:00:03]} 29. Nf5 {[%emt 0:00:25]} Qc3 {[%emt 0:01:04]} (29... Qxd6 30. Nxd6 Rc6) 30. Ne7+ {[%emt 0:01:07]} Kh8 {[%emt 0:00:03]} 31. Nxc8 {[%emt 0:00:03][%cal Rd6f8]} Qxf3+ {[%emt 0:00:54]} 32. Kg1 {[%emt 0:00:03][%cal Rd6f8]} Qe3+ {[%emt 0:00:09]} 33. Kf1 {[%emt 0:00:15][%cal Rd6f8]} Qf3+ {[%emt 0:00:33] [#]} 34. Ke1 $1 {[%emt 0:00:35][%cal Rd6f8]} Qe3+ {[%emt 0:00:04] [#]} 35. Kd1 $1 {[%emt 0:00:10][%cal Rd6f8]} Qb3+ {[%emt 0:00:54]} 36. Ke2 {[%emt 0:00:36][%cal Rd6f8]} Qc2+ {[%emt 0:00:23]} 37. Kf3 {[%emt 0:00:10][%cal Rd6f8]} Qc3+ {[%emt 0:00:11]} 38. Kf4 {[%emt 0:01:05][%cal Rd6f8]} h6 {[%emt 0:00:17] [#]} 39. Ne7 $1 {[%emt 0:02:23] Qb8+ would kill now.} g5+ {[%emt 0:01:31]} (39... Kh7 40. Rd1) 40. Kg4 {[%emt 0:00:19][%cal Rd6h6] White mates.} ({Stronger than} 40. Kf5 Qf3+ 41. Ke5 Qf4+ 42. Kd5 Qd2+ 43. Ke5 Qf4+ 44. Kd5 Qd2+ 45. Ke5 Qf4+ $11) 40... h5+ {[%emt 0:00:38]} 41. Kxg5 {[%emt 0:30:24][%cal Rd6h6]} Qe3+ {[%emt 0:30:26]} 42. Qf4 {[%emt 0:00:24]} f6+ {[%emt 0:00:23]} 43. Kf5 {[%emt 0:00:08] Weighted Error Value: White=0.53/Black=0.98} 1-0

[Event "44th Chess Olympiad Open 2022"]
[Site "Chennai"]
[Date "2022.07.30"]
[Round "2.46"]
[White "Gong, Daniel Hanwen"]
[Black "Priasmoro, Novendra"]
[Result "1/2-1/2"]
[ECO "A45"]
[WhiteElo "2296"]
[BlackElo "2494"]
[Annotator "TA"]
[PlyCount "65"]
[EventDate "2022.07.29"]
[EventType "team-tourn"]
[EventCountry "IND"]
[SourceTitle "playchess.com"]
[Source "ChessBase"]
[SourceQuality "1"]
[WhiteTeam "New Zealand"]
[BlackTeam "Indonesia"]
[WhiteTeamCountry "NZL"]
[BlackTeamCountry "INA"]
[TimeControl "40/5400+30:1800+30"]

{[%evp 9,65,0,24,22,33,25,23,10,20,8,52,37,57,66,66,69,72,72,90,0,29,31,35,43,43,-4,0,0,0,0,0,0,0,0,0,0,0,0,0,0,0,0,0,0,0,0,0,0,0,0,0,0,0,0,0,0,0,0]} 1. d4 {[%emt 0:00:06]} Nf6 {[%emt 0:00:10]} 2. Bf4 {[%emt 0:00:04]} g6 {[%emt 0:00:06]} 3. Nc3 {[%emt 0:00:05]} d5 {[%emt 0:00:04]} 4. e3 {[%emt 0:00:09]} Bg7 {[%emt 0:00:05]} 5. h4 {[%emt 0:00:09]} c5 {[%emt 0:14:18]} 6. Nb5 {[%emt 0:00:58] [#] Strongly threatening Nc7+. A45: Trompowsky Attack.} Na6 {[%emt 0:00:10] Inhibits Nc7+.} 7. c3 {[%emt 0:00:04]} O-O {[%emt 0:01:46]} 8. Be2 {[%emt 0:00:49] Against Bg4. White has an edge.} Qb6 {[%emt 0:01:59]} 9. a4 {[%emt 0:00:05] [#]} c4 $146 {[%emt 0:03:48]} ({Predecessor:} 9... h5 10. Nf3 Bg4 11. a5 Qc6 12. Ne5 Bxe2 13. Qxe2 Qc8 14. O-O Rd8 15. Rad1 c4 {½-½ (23) Stolz,S (2309)-Rudenko,V (2374) LSS email 2017}) 10. Nf3 {[%emt 0:23:32]} Bd7 {[%emt 0:02:11]} 11. b3 {[%emt 0:00:45]} Bxb5 {[%emt 0:08:34]} 12. axb5 {[%emt 0:00:06]} Qxb5 {[%emt 0:00:05]} 13. bxc4 {[%emt 0:02:55]} dxc4 {[%emt 0:00:04]} 14. Qa4 {[%emt 0:00:50]} (14. Qc1 $16) 14... Qxa4 {[%emt 0:01:16]} (14... Qb2 $5 {[%cal Rb2c3]} 15. Qa3 Qxa3 16. Rxa3 Rfc8 $14) 15. Rxa4 {[%emt 0:00:06]} Nd5 {[%emt 0:00:07]} 16. Kd2 {[%emt 0:17:47]} Rfd8 {[%emt 0:13:42][%cal Oa6c5]} 17. Kc2 {[%emt 0:07:12]} ({Don't play} 17. Rxc4 Nb6 $11) (17. Bxc4 $14 {feels stronger.} Nc5 {[#]} 18. Bxd5 $1 Rxd5 19. Ra2) 17... Nxf4 {[%emt 0:02:03] The position is equal.} (17... Nc5 {seems wilder.} 18. dxc5 Nxc3 19. Rb4 Nxe2 20. Be5 Bxe5 21. Nxe5 Rac8) 18. exf4 {[%emt 0:00:05] Threatens to win with Rb1.} Nc7 {[%emt 0:00:11]} 19. Rha1 {[%emt 0:17:08]} a6 {[%emt 0:02:09]} 20. Rxc4 {[%emt 0:00:21]} Nd5 {[%emt 0:00:06]} 21. g3 {[%emt 0:00:53]} e6 {[%emt 0:03:17]} 22. Ne5 {[%emt 0:02:28]} b5 {[%emt 0:09:27]} 23. Rc6 {[%emt 0:02:41]} b4 $1 {[%emt 0:00:21]} 24. Bf3 {[%emt 0:06:28]} Nxc3 {[%emt 0:07:40]} 25. Rxc3 {[%emt 0:00:57]} bxc3 {[%emt 0:00:06]} 26. Bxa8 {[%emt 0:00:02]} Rxa8 {[%emt 0:00:05]} 27. Kxc3 $11 {[%emt 0:00:26][%mdl 4096] Endgame KRB-KRN} a5 {[%emt 0:00:16]} 28. Ra4 {[%emt 0:01:20]} Bf8 {[%emt 0:19:46]} 29. Nc6 {[%emt 0:03:19]} Rc8 {[%emt 0:00:15]} 30. Rc4 {[%emt 0:00:04][%cal Oc6e7] Prevents Bb4+. Ne7+! is the strong threat.} Ra8 {[%emt 0:00:27]} 31. Ra4 {[%emt 0:07:04]} Rc8 {[%emt 0:00:52]} 32. Rc4 {[%emt 0:00:02][%cal Oc6e7] Inhibits Bb4+. And now Ne7+! would win.} Ra8 {[%emt 0:01:21]} 33. Ra4 {[%emt 0:03:28] Weighted Error Value: White=0.06 (flawless) /Black=0.05 (flawless)} 1/2-1/2

[Event "44th Chess Olympiad Open 2022"]
[Site "Chennai"]
[Date "2022.07.30"]
[Round "2.48"]
[White "Masango, Spencer"]
[Black "Altell, Majed"]
[Result "1-0"]
[ECO "A17"]
[WhiteElo "2170"]
[BlackElo "1807"]
[Annotator "TA"]
[PlyCount "55"]
[EventDate "2022.07.29"]
[EventType "team-tourn"]
[EventCountry "IND"]
[SourceTitle "playchess.com"]
[Source "ChessBase"]
[SourceQuality "1"]
[WhiteTeam "Zimbabwe"]
[BlackTeam "Palestine"]
[WhiteTeamCountry "ZIM"]
[BlackTeamCountry "PLE"]
[TimeControl "40/5400+30:1800+30"]

{[%evp 9,55,-57,11,0,6,0,6,-12,4,-22,29,2,-4,-1,6,-8,-14,-6,-12,-54,-55,-62,-65,-70,-12,-8,-11,-10,0,0,96,93,87,91,95,75,76,76,77,75,100,94,93,85,89,92,1430,1328]} 1. c4 {[%emt 0:00:11]} Nf6 {[%emt 0:00:38]} 2. Nc3 {[%emt 0:01:22]} e6 {[%emt 0:01:07]} 3. g3 {[%emt 0:00:23]} d5 {[%emt 0:01:02]} 4. Bg2 {[%emt 0:02:30]} c6 {[%emt 0:01:33]} 5. Nf3 {[%emt 0:03:39]} Nbd7 {[%emt 0:11:13]} (5... d4 $15 6. Nb1 h6) 6. cxd5 {[%emt 0:00:44] A17: English Opening: 1...Nf6 with ...Bb4.} exd5 {[%emt 0:00:53]} 7. O-O {[%emt 0:00:47]} Be7 {[%emt 0:01:26]} 8. Rb1 {[%emt 0:03:24] The position is equal.} O-O {[%emt 0:01:27]} 9. b4 {[%emt 0:00:21] [#]} b5 $146 {[%emt 0:02:58]} (9... Nb6 $142) ({Predecessor:} 9... a6 10. d3 Re8 11. e4 dxe4 12. dxe4 a5 13. a3 axb4 14. axb4 Nb6 15. b5 c5 {1-0 (48) Murey,J-Vasiuhin Soviet Union 1967}) 10. Nd4 {[%emt 0:03:20]} Ne5 {[%emt 0:09:36]} 11. d3 {[%emt 0:03:45]} Bd7 {[%emt 0:05:09]} 12. a4 {[%emt 0:01:39][%cal Ra4b5]} a5 {[%emt 0:02:33]} 13. axb5 {[%emt 0:05:11] And now f4 would win.} axb4 {[%emt 0:00:54]} 14. bxc6 {[%emt 0:05:52]} (14. Bf4 $5 {[%cal Rf4e5]} Ng6 15. bxc6 $11) 14... Nxc6 {[%emt 0:01:06]} 15. Ncb5 {[%emt 0:00:46]} Qb6 $1 {[%emt 0:05:06]} 16. e3 {[%emt 0:07:54][%cal Be2e3,Be3d4][%mdl 32]} Bc5 {[%emt 0:11:04]} (16... Ne5 $1 $15 17. Nc3 Ra5) 17. Bd2 $11 {[%emt 0:09:03]} Rfb8 {[%emt 0:03:09]} ({Much weaker is} 17... Nxd4 18. Nxd4 Ra2 19. Nb3 $15) 18. Nxc6 {[%emt 0:12:36]} Bxc6 {[%emt 0:05:46]} 19. Nd4 {[%emt 0:07:39]} Bxd4 {[%emt 0:00:31]} (19... Ba4 $11 20. Qe2 Bd7) 20. Rxb4 $16 {[%emt 0:01:20]} Qc5 {[%emt 0:01:19]} 21. exd4 {[%emt 0:06:07]} Qa7 {[%emt 0:01:28]} 22. Qb3 {[%emt 0:03:23]} Rxb4 {[%emt 0:02:14]} 23. Qxb4 {[%emt 0:00:28]} Qa6 {[%emt 0:00:34]} 24. Rc1 {[%emt 0:00:59]} Bb5 {[%emt 0:02:21]} 25. Bg5 {[%emt 0:00:51] Strongly threatening Bxf6. White is more active. A strong pair of Bishops.} Bxd3 {[%emt 0:01:03]} 26. Bxf6 {[%emt 0:00:39]} Qxf6 {[%emt 0:00:17]} 27. Bxd5 {[%emt 0:00:13]} g6 $2 {[%emt 0:01:29][%mdl 8192] [#]} 28. Bxa8 {[%emt 0:00:20] Weighted Error Value: White=0.08 (flawless) /Black=0.27 (precise)} 1-0